Cogmind - Beta 16 @@@ ROGUE MODE // 2025.12.30 @ 21:37:46 Player: cromly Result: Destroyed by X-57 Shotgunner with High-powered Shotgun Performance ------------- Evolutions (2) 1000 Regions Visited (3) 600 Robots Destroyed (30) 150 Value Destroyed (792) 792 Prototype IDs (4) 80 Alien Tech Used (0) 0 Bonus (0) 0 TOTAL SCORE: 2622 Bonus ------- None Cogmind --------- Core Integrity 0/550 Matter 291/300 Energy 440/440 System Corruption 0% Temperature Cool (60) Movement Treading (160) Location -8/Materials Parts ------- > --- POWER (2) -------- Reinforced Ion Engine Deuterium Engine > --- PROPULSION (3) --- Light Treads Light Treads > --- UTILITY (3) ------ Improved Utility Shielding Hacking Suite > --- WEAPON (3) ------- Shock Rifle Advanced Assault Cannon Katana > --- INVENTORY (5) ---- Improved Ion Engine Aerolev Unit Faulty Aerolev Unit Aerolev Unit Flight Unit Peak State ------------ > --- POWER ------------ Light Ion Engine Improved Ion Engine > --- PROPULSION ------- Flight Unit Flight Unit Flight Unit > --- UTILITY ---------- Microactuators Microactuators Microactuators > --- WEAPON ----------- Advanced Assault Cannon Advanced Assault Cannon > --- INVENTORY -------- High-capacity Storage Unit Advanced Assault Cannon [Rating: 26] Favorites ----------- Power Ion Engine Engine Ion Engine Power Core Light Nuclear Core Propulsion Light Treads Treads Light Treads Leg Aluminum Leg Hover Unit Hover Unit Flight Unit Flight Unit Utility Small Storage Unit Device Microactuators Storage Small Storage Unit Hackware Hacking Suite Protection Improved Utility Shielding Weapon Light Assault Rifle Energy Gun Shock Rifle Energy Cannon Light EM Pulse Cannon Ballistic Gun Light Assault Rifle Ballistic Cannon Advanced Assault Cannon Slashing Weapon Katana Build | -11 -10 -10 -8 ------- Run | Yrd Mat Sub Mat Slots Evolved 4 | . . . 4 Power 1 | . . . 1 Propulsion 1 | . . . 1 Utility 1 | . . . 1 Weapon 1 | . . . 1 Parts Attached 48 | 6 8 2 32 Power 9 | 1 1 1 6 Engine 8 | 1 . 1 6 Core 1 | . 1 . . Reactor . | . . . . Propulsion 14 | 2 3 . 9 Treads 4 | . 2 . 2 Leg 3 | 2 1 . . Wheel . | . . . . Hover 2 | . . . 2 Flight 5 | . . . 5 Utility 15 | 1 4 1 9 Device 5 | . . . 5 Storage 4 | 1 3 . . Processor . | . . . . Hackware 2 | . . . 2 Protection 4 | . 1 1 2 Artifact . | . . . . Weapon 10 | 2 . . 8 Energy Gun 2 | . . . 2 Energy Cannon 2 | . . . 2 Ballistic Gun 2 | 2 . . . Ballistic Cannon 3 | . . . 3 Launcher . | . . . . Special Weapon . | . . . . Impact Weapon . | . . . . Slashing Weapon 1 | . . . 1 Piercing Weapon . | . . . . Special Melee Weapon . | . . . . Unidentified Prototypes . | . . . . Parts Lost 18 | . 2 3 13 Power 4 | . . . 4 Propulsion 6 | . 1 . 5 Utility 3 | . 1 1 1 Weapon 5 | . . 2 3 Highest Loss Streak 9 | . 1 2 9 To Critical Strikes . | . . . . Average Backups 4 | 2 5 3 3 Power . | . 1 . . Propulsion 2 | 1 3 2 . Utility . | . . 1 1 Weapon . | . . . 1 Tool/Special . | . . . . Unused Backups 8 | . 5 1 2 Power 1 | . 1 . . Propulsion 5 | . 3 1 1 Utility . | . . . . Weapon 2 | . 1 . 1 Tool/Special . | . . . . Average Slot Usage (%) 79 | . 99 73 56 Engine 9 | . 7 12 11 Core 3 | . 6 1 . Treads 11 | . 13 28 5 Leg 7 | . 14 . . Flight 4 | . . . 12 Device 2 | . . . 5 Storage 12 | . 25 3 . Hackware 1 | . . . 3 Protection 2 | . 1 9 2 Ballistic Gun 15 | . 28 18 . Ballistic Cannon 2 | . . . 5 Slashing Weapon 1 | . . . 4 Peak Build Rating 26 | 6 9 10 26 Average Rating 10 | 4 7 7 14 On Entrance 4 | . 6 9 3 Avg Prop Armor Cover (%) . | . . . . Naked Turns . | . . . . Heaviest Build 32 | 13 22 26 32 Greatest Support 40 | 20 40 40 40 Greatest Overweight (x) 6 | . . . 6 Average Overweight (x) . | . . . . Largest Inventory Capacity 20 | 8 20 10 5 Average Capacity 6 | 7 8 5 5 Most Carried 8 | 4 8 8 5 Average Carried 4 | 2 5 3 3 Final Capacity 10 | 8 10 5 5 Final Carried 6 | 3 6 3 5 Class Distribution -------------------- 83% | Mutant 9% | Scavenger-Mutant 4% | Gunner Dominant Class ---------------- Mutant | -10/Materials Mutant | -10/Subcaves Mutant | -8/Materials Resources | -11 -10 -10 -8 ----------- Run | Yrd Mat Sub Mat Matter Collected 1151 | 260 368 20 503 Remotely . | . . . . Salvage Created 806 | . 368 . 438 Parts 49 | . 21 . 28 Haulers Intercepted 1 | . . . 1 Recyclers Shooed . | . . . . Parts Field Recycled . | . . . . Retrieved Matter . | . . . . Parts Self-Destructed 4 | . . 4 . Prevented . | . . . . Parts Restored . | . . . . Kills | -11 -10 -10 -8 ------- Run | Yrd Mat Sub Mat Combat Hostiles Destroyed 22 | . 8 . 14 Melee 5 | . . . 5 Guns 9 | . 8 . 1 Cannons 6 | . . . 6 AOE 2 | . . . 2 Classes Destroyed 11 | . 2 . 9 Worker 1 | . . . 1 Builder 2 | . . . 2 Tunneler 1 | . . . 1 Hauler 1 | . . . 1 Recycler 1 | . . . 1 Watcher 2 | . 2 . . Swarmer 7 | . . . 7 Grunt 11 | . 8 . 3 Sentry 2 | . . . 2 Specialist 1 | . . . 1 Hunter 1 | . . . 1 Best Kill Streak 6 | . 3 . 6 Combat Bots Only 4 | . 2 . 4 Max Kills in Single Turn 5 | . 2 . 5 Gunslinging . | . . . . Exploded 2 | . . . 2 Melee 1 | . . . 1 Uniques/NPCs Destroyed . | . . . . Combat | -11 -10 -10 -8 -------- Run | Yrd Mat Sub Mat Hostile Shots Fired 260 | . 73 35 152 Missed 76 | . 15 10 51 Hits 184 | . 58 25 101 Projectile 184 | . 58 25 101 Critical Strikes 6 | . 2 1 3 Damage Taken 2648 | . 706 473 1469 Core 757 | . 113 89 555 Absorbed by Shields . | . . . . Redirected to Shielding 6 | . . . 6 Ignored by Resistances 4 | . . . 4 Core Remaining (%) 59 | 100 . 19 . Volleys Fired 66 | . 44 3 19 Largest 3 | . 2 1 3 Hottest 176 | . 40 20 176 Shots Fired 139 | . 88 3 48 Gun 100 | . 88 3 9 Cannon 39 | . . . 39 Launcher . | . . . . Special . | . . . . Kinetic 123 | . 88 3 32 Thermal 3 | . . . 3 Explosive . | . . . . Electromagnetic 13 | . . . 13 Robot Hit Streak 9 | . 9 1 4 Robot Miss Streak 3 | . 3 2 3 Penetration Max . | . . . . Secondary Targets 1 | . 1 . . Max Gunslinging Chain 1 | . 1 . . Shots Hit Robots 104 | . 55 1 48 Core Hits 45 | . 23 2 20 Critical Kills . | . . . . Critical Parts Destroyed . | . . . . Critical Strikes 9 | . . . 9 Blast 2 | . . . 2 Sever 7 | . . . 7 Melee Attacks 23 | . . . 23 Impact . | . . . . Slashing 23 | . . . 23 Piercing . | . . . . Sneak Attacks 2 | . . . 2 Combat Hostiles . | . . . . Follow-up Attacks . | . . . . Damage Inflicted 2587 | . 618 24 1945 Guns 683 | . 600 24 59 Cannons 582 | . . . 582 Explosions 594 | . . . 594 Melee 710 | . . . 710 Ramming 18 | . 18 . . Kinetic 1168 | . 600 24 544 Thermal 112 | . . . 112 Explosive 482 | . . . 482 Electromagnetic 97 | . . . 97 Impact . | . . . . Slashing 710 | . . . 710 Piercing . | . . . . Highest Corruption . | . . . . Average Corruption . | . . . . Corruption Purged . | . . . . Corruption Blocked . | . . . . Overload Shots . | . . . . Overflow Damage 92 | . . . 92 Projectiles 7 | . . . 7 Explosions 76 | . . . 76 Melee 9 | . . . 9 Knockbacks 3 | . . . 3 Impact . | . . . . Kinetic 3 | . . . 3 Secondary . | . . . . Self-Inflicted Damage 110 | . . . 110 Shots 2 | . . . 2 Rammed 2 | . 2 . . Targets Rammed 3 | . 3 . . Kicked 1 | . 1 . . Crushed . | . . . . Highest Temperature 259 | . 44 . 259 Average Temperature 70 | . 16 . 107 Received Heat Transfer 909 | . 423 63 423 Effects 1 | . . . 1 Interference 1 | . . . 1 Siege Activations . | . . . . Martial Activations . | . . . . Shielding Activations . | . . . . Robots Disrupted . | . . . . Combat Hostiles . | . . . . Robots Corrupted . | . . . . Combat Hostiles . | . . . . Parts Fried . | . . . . Impact Corruptions . | . . . . Robots Melted . | . . . . Combat Hostiles . | . . . . Parts Melted . | . . . . Heat Transferred 150 | . . . 150 Parts Sabotaged . | . . . . Parts Stolen . | . . . . Parts Stripped . | . . . . Power Chain Reactions 1 | . . . 1 Alert | -11 -10 -10 -8 ------- Run | Yrd Mat Sub Mat Maximum Alert Level 1 | . . . 1 Low Security (%) 95 | 100 100 . 89 Level 1 4 | . . . 10 Level 2 . | . . . . Level 3 . | . . . . Level 4 . | . . . . Level 5 . | . . . . High Security . | . . . . Max Security . | . . . . Peak Influence 222 | . 50 . 222 Initial . | . . . . Average 59 | . 10 . 127 Influence Increases 763 | . 219 . 544 Destroy 0b10 Robot/C 440 | . 160 . 280 Destroy 0b10 Robot/NC 40 | . 10 . 30 Destroy Leader 116 | . 44 . 72 Successful Hack 7 | . 5 . 2 Disable Machine 30 | . . . 30 Destroy Structure 25 | . . . 25 Lose Combat Pursuer 105 | . . . 105 Influence Decreases 597 | . 219 . 378 Time Decay 467 | . 209 . 258 Lost Part 130 | . 10 . 120 Squads Dispatched 8 | . 4 . 4 Investigation 3 | . 3 . . Extermination . | . . . . Reinforcement 5 | . 1 . 4 Assault . | . . . . Garrison . | . . . . Intercept . | . . . . Searches Triggered . | . . . . Construction Impeded . | . . . . Haulers Reinforced . | . . . . Active Scanning Responses . | . . . . Cargo Convoy Interrupts . | . . . . Stealth | -11 -10 -10 -8 --------- Run | Yrd Mat Sub Mat Distress Signals 4 | . 1 . 3 Communications Jammed . | . . . . Distress Signals . | . . . . Times Spotted 55 | . 18 11 26 Peak Tracking Total 9 | . 4 6 9 Tactical Retreats 5 | . . . 5 Traps | -11 -10 -10 -8 ------- Run | Yrd Mat Sub Mat Traps Triggered 3 | . 2 . 1 Indirectly . | . . . . Trap Hack Attempts . | . . . . Triggered . | . . . . Disarmed . | . . . . Reprogrammed . | . . . . Reused . | . . . . Traps Extracted . | . . . . Installed . | . . . . Triggered . | . . . . Machines | -11 -10 -10 -8 ---------- Run | Yrd Mat Sub Mat Machines Disabled 2 | . . . 2 Max in Single Turn 1 | . . . 1 Machines Repaired . | . . . . Machines Dismantled . | . . . . Machines Sabotaged . | . . . . Overloaded Fab Kills . | . . . . Hacking | -11 -10 -10 -8 --------- Run | Yrd Mat Sub Mat Machines Accessed 8 | . 4 . 4 Terminals 4 | . 3 . 1 Fabricators . | . . . . Repair Stations . | . . . . Recycling Units 3 | . 1 . 2 Scanalyzers 1 | . . . 1 Garrison Access . | . . . . Total Hacks 26 | . 16 . 10 Successful 14 | . 7 . 7 Failed 11 | . 9 . 2 Catastrophic . | . . . . Database Lockouts 1 | . . . 1 Manual . | . . . . Terminals 12 | . 10 . 2 Fabricators . | . . . . Repair Stations . | . . . . Recycling Units 9 | . 6 . 3 Scanalyzers 5 | . . . 5 Garrison Access . | . . . . Terminal Hacks 4 | . 3 . 1 Record 1 | . 1 . . Robot Analysis 1 | . 1 . . Prototype ID Bank 2 | . 1 . 1 Fabricator Hacks . | . . . . Repair Station Hacks . | . . . . Recycling Unit Hacks 7 | . 4 . 3 Recycle Component 3 | . 3 . . Process 1 | . 1 . . Report Inventory 2 | . . . 2 Retrieve Components 1 | . . . 1 Scanalyzer 3 | . . . 3 Insert Component 1 | . . . 1 Analyze 1 | . . . 1 Retrieve Study 1 | . . . 1 Garrison Access Hacks . | . . . . Unauthorized Hacks . | . . . . Terminals . | . . . . Fabricators . | . . . . Repair Stations . | . . . . Recycling Units . | . . . . Scanalyzers . | . . . . Garrison Access . | . . . . Data Cores Recovered . | . . . . Used . | . . . . Hacking Detections 4 | . 3 . 1 Full Trace Events 2 | . 2 . . Feedback Events . | . . . . Feedback Blocked . | . . . . Robot Schematics Acquired . | . . . . Robots Built . | . . . . Authchips . | . . . . Time . | . . . . Total Robot Build Rating . | . . . . Part Schematics Acquired 1 | . . . 1 Parts Built . | . . . . Authchips . | . . . . Time . | . . . . Total Part Build Rating . | . . . . Part Studies Acquired 1 | . . . 1 Parts Repaired . | . . . . Time . | . . . . Parts Recycled 3 | . 3 . . Recycled Matter 144 | . 144 . . Retrieved Matter . | . . . . Retrieved Components 10 | . . . 10 Parts Scanalyzed 1 | . . . 1 Part Schematics Acquired 1 | . . . 1 Parts Damaged . | . . . . Bothacking | -11 -10 -10 -8 ------------ Run | Yrd Mat Sub Mat Used RIF Installer . | . . . . Robots Hacked . | . . . . Non-combat . | . . . . Combat . | . . . . Robot Hacks Applied . | . . . . Relay Couplers Released . | . . . . Fabnet Peak Effective % . | . . . . Robots Rewired . | . . . . Allies Hacked . | . . . . Hacks Repelled . | . . . . Allies | -11 -10 -10 -8 -------- Run | Yrd Mat Sub Mat Total Allies . | . . . . Largest Group . | . . . . Highest-Rated Group . | . . . . Highest-Rated Ally . | . . . . Total Orders . | . . . . Ally Attacks . | . . . . Total Damage . | . . . . Kills . | . . . . Allies Corrupted . | . . . . Allies Melted 1 | . . 1 . Intel | -11 -10 -10 -8 ------- Run | Yrd Mat Sub Mat Active Infowar (turns) 107 | . . . 107 Terrain 107 | . . . 107 Robot Analysis Total 1 | . 1 . . Derelict Logs Recovered . | . . . . Drone Launches . | . . . . Drone Recoveries . | . . . . Exploration | -11 -10 -10 -8 ------------- Run | Yrd Mat Sub Mat Turns Passed 1889 | 73 905 205 706 Spaces Moved 1322 | 54 542 122 604 Core 14 | 8 . . 6 Treads 473 | . 249 122 102 Legs 339 | 46 293 . . Wheels . | . . . . Hover 67 | . . . 67 Flight 429 | . . . 429 Fastest Speed 34 | 50 120 160 34 Average Speed 114 | 109 138 160 85 Slowest Speed 520 | 120 160 160 520 Overloaded Moves . | . . . . Propulsion Burnouts . | . . . . Robots Hopped . | . . . . Potential Cave-ins . | . . . . Cave-ins Triggered . | . . . . Exploration Rate (%) 32 | 4 79 8 40 Regions Visited 3 Branch Regions 1 Pre-discovered Areas . | . . . . Known Exits Taken . | . . . . Unknown Exits Taken 3 | 1 1 1 . Scrap Searched . | . . . . Spaces Dug . | . . . . Terrain Destroyed 30 | . . . 30 Melee . | . . . . Projectile 8 | . . . 8 AOE 22 | . . . 22 Terrain Rammed . | . . . . Walls Destroyed . | . . . . Machines Disabled . | . . . . Actions | -11 -10 -10 -8 --------- Run | Yrd Mat Sub Mat Total 1558 | 68 617 132 741 Wait . | . . . . Move 1319 | 53 541 121 604 Hop . | . . . . Pick Up 55 | 9 14 1 31 Fast Attach 5 | . . . 5 Attach 41 | 6 3 1 31 Detach 11 | . . . 11 Swap 10 | . 7 1 2 Drop 25 | . 5 5 15 Fire 66 | . 44 3 19 Melee 23 | . . . 23 Ram . | . . . . Kick 1 | . 1 . . Crush 2 | . 2 . . Escape Stasis . | . . . . Rewire . | . . . . Trap . | . . . . Miscellaneous . | . . . . Route ------- -11/Scrapyard -10/Materials (discovered 3 exits: [*Mat] / [*Min] / [*Sub]) -10/Subcaves -8/Materials History --------- Turn | Location | Event 2 | -11/Scrapyard | Met Revision 17 7 | -11/Scrapyard | Discovered new exit (range 16) 74 | -11/Scrapyard | Entered Materials 191 | -10/Materials | Discovered new exit (range 7) 308 | -10/Materials | Build established: Mutant 386 | -10/Materials | Discovered new exit (range 16) 945 | -10/Materials | Discovered new exit (range 8) 979 | -10/Materials | Entered Subcaves 980 | -10/Subcaves | Approached by a straggling Scientist 1070 | -10/Subcaves | Discovered new exit (range 12) 1135 | -10/Subcaves | Ambushed by swarm of Subdwellers 1138 | -10/Subcaves | Core integrity fell below 50% 1139 | -10/Subcaves | Ambushed by Subdwellers from Twisted Machinery 1168 | -10/Subcaves | Core integrity fell below 20% 1184 | -10/Subcaves | Entered Materials 1184 | -8/Materials | Evolved 4 slots: Power x1, Propulsion x1, Utility x1, Weapon x1 1215 | -8/Materials | Lost 5 allies 1372 | -8/Materials | Core integrity fell below 50% 1401 | -8/Materials | Lost 9 parts (3p3n3w) 1625 | -8/Materials | Central database locked down 1783 | -8/Materials | Core integrity fell below 20% 1890 | -8/Materials | Destroyed by X-57 Shotgunner with High-powered Shotgun Last Messages --------------- 01755_ Dropped Faulty Adv. EMP Blaster. 01760_ Dropped Imp. Terrain Scanner. 01768_ Y-45 Defender Lgt. Treads severed. 01773_ Flight Unit destroyed. 01775_ Y-45 Defender Lgt. Armor Plating severed. 01785_ Y-45 Defender Lgt. Treads severed. 01788_ Y-45 Defender Heat Sink severed. 01790_ Y-45 Defender Imp. Ion Engine severed. 01793_ Y-45 Defender destroyed. 01808_ Acquired Lgt. Treads. 01817_ Acquired 55 matter. 01822_ Acquired Hacking Suite. 01823_ ALERT: Suspicious intruders detected, dispatching Specialist reinforcements to area. [Achievement: Heavy Suspicion] 01835_ K-01 Serf collects debris. 01874_ X-57 Shotgunner destroyed. 01877_ A-02 Transporter destroyed. 01881_ Acquired Prototype Hover Unit. 01888_ Acquired 49 matter. Map ----- +----------------------------------------------------+ | ?????# #####################+#?????????????????? | | ?#???# #???#???????????????????????????????????? | | ?????# #?????????#????? ???????????????????????? | | ?????# # ?????????? ????? ?#???????????????????? | | ?????# #???"???????????????????????????????????? | | #???## #??????"??#?????????????????????????????? | | ?????# #???????????????????????????????????????? | | ?????# #???????????????????????????????????????? | | ?????# #?????? ????????????????????????????????? | | ?????# # ???????????##+##?????????????????????? | | #????# #####+######## #????????????????????? | | ?????# ##???????????????????? | | ???#?# T ????????????????????? | | ?????# #????????????????????? | | ?????# #+###+######## ?????????????????????? | | ?????# # ! !## #?????????????????????? | | ?????# # ## #?????????????????????? | | ?????# # """ """ ## #?????????????????????? | | ?????# + """ """ ## #?????????????????????? | | ??#??# # """ """ ## ##????????????????????? | | ?????# ###########+## ! #????????????????????? | | ?????# ##+#?????????????????? | | ?????# #???#?????????????? | | ?????# = ####?????????????????? | | ?#######+############ * #?#??????????????????? | | ?# !* #??????###@###????????????????????? | | ?#]! ! #??#?????# ##?????????????????????? | | ?# #????????#%#??????????????????????? | | ?# !#????????#[#??????????????????????? | | ?# #????????# #??????????????????????? | | ?#############????????#%##?????????????????????? | | ??????????????????????# #??????????????????????? | | ????????????????? ????# #??????????????????????? | | ??????????????????????# #??????????????????????? | | ???????? ?????? ??????# #??????????????????????? | | ??????????????????????? ???????????????????????? | | ?????????????#????????? ???????????????????????? | | ????????? ?????? ??????x???????????????????????? | | ??????????????????????? ???????????????????????? | | ????????+?????????????? ???????????????????????? | | ??????????????????????? ???????????????????????? | | ???#??????????????????? ???????????????????????? | | ???????????????????????????????????????????????? | | ?????????????????H?????????????????????????????? | | ???????????????????????????????????????????????? | | ???????????????????????????????????????????????? | | ???????????????????????????????????????????????? | | ???????????????????????????????????????????????? | | ???????????????????????????????????????????????? | | ???????????????????????????????????????????????? | +----------------------------------------------------+ Best States ------------- Heat Dissipation 31 Energy Generation 21 Energy Capacity 440 Matter Stores 464 Matter Capacity 500 Sight Range 16 Terrain Scan Range 16 Terrain Scan Density 10 Armor Coverage 800 Utility Shielding 66 Melee Speed Boost 50 Evasion (%) 63 Recoil Reduction 2 Offensive Hacking 10 Item Schematics ----------------- Adv. EMP Blaster | -8/Materials | Scanalyzed Robot Schematics ------------------ None Fabricated ------------ Nothing Repaired ---------- Nothing Studied --------- Katana | -8/Materials | Hacked Alien Tech Used ----------------- None Achievements -------------- Heavy Suspicion Item+ Organ Harvest Safety First There's More Where That Came From You Again Challenges ------------ None Game ------ Seed LegSuperchargedInjector Manual? 0 Play Time 00:44:01 Cumulative 9.2 hours Start 2025.12.30 @ 20:24:35 End 2025.12.30 @ 21:37:46 Sessions 1 Manual Loads 0 Difficulty Rogue Special Mode None Game No. 19 Rogue 19 Adventurer 0 Explorer 0 Win Type - Total 0 Types 0/0/0/0/0/0/0/0/0/0 Lore% 2 Gallery% 8 Achievement% 5 Wizard Run 0 Options --------- Layout 1 ASCII 0 Keyboard 0 Movement Mouse Keybinds 0 Fullscreen 2 Font 48/Smallcaps Map View 50x35 Zoom Use 0% Tactical HUD 1 Map Filters NONE Filters NONE Steam 1 RUN: 3fa1b41f-94d3-4db7-9ff5-68255af120fa